[Event "Titled Tuesday Blitz December 27 Early 2022"]
[White "Sovetov, Oleksandr"]
[Black "Odegov, Artem"]
[WhiteFideId "34105786"]
[BlackFideId "34183644"]
[WhiteElo "1976"]
[BlackElo "2261"]
[Result "1-0"]
[Round "11"]
[TimeControl "180+2"]
[Date "2022.12.27"]
[WhiteClock "0:00:16"]
[BlackClock "0:00:04"]

1. Nf3 {[%clk 0:03:00]}  d5 {[%clk 0:02:59]} 2. e3 {[%clk 0:03:00]}  Nf6 {[%clk 0:02:58]} 3. c4 {[%clk 0:03:01]}  e6 {[%clk 0:02:58]} 4. b3 {[%clk 0:03:01]}  c5 {[%clk 0:02:58]} 5. cxd5 {[%clk 0:03:01]}  exd5 {[%clk 0:02:58]} 6. Bb2 {[%clk 0:03:00]}  Nc6 {[%clk 0:02:58]} 7. Be2 {[%clk 0:03:00]}  Be7 {[%clk 0:02:58]} 8. d4 {[%clk 0:03:00]}  O-O {[%clk 0:02:59]} 9. O-O {[%clk 0:02:58]}  Bg4 {[%clk 0:02:58]} 10. dxc5 {[%clk 0:02:48]}  Bxc5 {[%clk 0:02:56]} 11. Nd4 {[%clk 0:02:45]}  Bxe2 {[%clk 0:02:45]} 12. Nxe2 {[%clk 0:02:45]}  Re8 {[%clk 0:02:45]} 13. Nbc3 {[%clk 0:02:38]}  a6 {[%clk 0:02:43]} 14. Rc1 {[%clk 0:02:29]}  Ba7 {[%clk 0:02:41]} 15. Na4 {[%clk 0:02:27]}  Ng4 {[%clk 0:02:23]} 16. h3 {[%clk 0:02:18]}  Nge5 {[%clk 0:02:22]} 17. Nc5 {[%clk 0:02:12]}  Qe7 {[%clk 0:02:05]} 18. Nd3 {[%clk 0:02:12]}  Ng6 {[%clk 0:02:02]} 19. Ndf4 {[%clk 0:02:08]}  Rad8 {[%clk 0:01:58]} 20. Nxg6 {[%clk 0:02:04]}  hxg6 {[%clk 0:01:56]} 21. Nd4 {[%clk 0:02:05]}  Ne5 {[%clk 0:01:53]} 22. Rc2 {[%clk 0:01:59]}  Qh4 {[%clk 0:01:47]} 23. Nf3 {[%clk 0:01:55]}  Nxf3+ {[%clk 0:01:34]} 24. Qxf3 {[%clk 0:01:55]}  Rd7 {[%clk 0:01:26]} 25. Rd1 {[%clk 0:01:51]}  d4 {[%clk 0:01:09]} 26. Bxd4 {[%clk 0:01:36]}  Bxd4 {[%clk 0:01:08]} 27. Rcd2 {[%clk 0:01:22]}  Red8 {[%clk 0:00:54]} 28. Qg4 {[%clk 0:01:20]}  Qxg4 {[%clk 0:00:22]} 29. hxg4 {[%clk 0:01:20]}  Kf8 {[%clk 0:00:22]} 30. Rxd4 {[%clk 0:01:16]}  Rxd4 {[%clk 0:00:22]} 31. Rxd4 {[%clk 0:01:16]}  Rc8 {[%clk 0:00:23]} 32. g3 {[%clk 0:01:05]}  Ke7 {[%clk 0:00:20]} 33. g5 {[%clk 0:01:01]}  Rc5 {[%clk 0:00:20]} 34. f4 {[%clk 0:00:48]}  Rc1+ {[%clk 0:00:19]} 35. Kf2 {[%clk 0:00:46]}  Rc2+ {[%clk 0:00:19]} 36. Kf3 {[%clk 0:00:46]}  Rxa2 {[%clk 0:00:20]} 37. g4 {[%clk 0:00:41]}  Rb2 {[%clk 0:00:15]} 38. b4 {[%clk 0:00:38]}  Rb1 {[%clk 0:00:14]} 39. f5 {[%clk 0:00:37]}  gxf5 {[%clk 0:00:14]} 40. gxf5 {[%clk 0:00:37]}  f6 {[%clk 0:00:14]} 41. g6 {[%clk 0:00:31]}  Rf1+ {[%clk 0:00:10]} 42. Ke4 {[%clk 0:00:32]}  b6 {[%clk 0:00:10]} 43. Rd2 {[%clk 0:00:18]}  Rc1 {[%clk 0:00:07]} 44. Kd5 {[%clk 0:00:17]}  Rc7 {[%clk 0:00:04]} 45. Ra2 {[%clk 0:00:17]}  Rd7+ {[%clk 0:00:04]} 46. Ke4 {[%clk 0:00:16]}  Ra7 {[%clk 0:00:04]} 47. Kd5 {[%clk 0:00:16]}  a5 {[%clk 0:00:04]} 48. Kc6 {[%clk 0:00:16]} 1-0


[Site "https://www.chess.com"]

[Event "Titled Tuesday Blitz December 27 Early 2022"]
[White "Stead, Kerry"]
[Black "Troltenier, Dirk"]
[WhiteFideId "3202577"]
[BlackFideId "4606400"]
[WhiteElo "1908"]
[BlackElo "2234"]
[Result "0-1"]
[Round "11"]
[TimeControl "180+2"]
[Date "2022.12.27"]
[WhiteClock "0:00:25"]
[BlackClock "0:00:12"]

1. d4 {[%clk 0:02:56]}  d5 {[%clk 0:02:59]} 2. e4 {[%clk 0:02:56]}  dxe4 {[%clk 0:02:57]} 3. Nc3 {[%clk 0:02:57]}  Nf6 {[%clk 0:02:57]} 4. f3 {[%clk 0:02:58]}  Bf5 {[%clk 0:02:46]} 5. fxe4 {[%clk 0:02:57]}  Nxe4 {[%clk 0:02:42]} 6. Qf3 {[%clk 0:02:57]}  Nd6 {[%clk 0:02:21]} 7. Bf4 {[%clk 0:02:56]}  e6 {[%clk 0:02:00]} 8. O-O-O {[%clk 0:02:52]}  Nd7 {[%clk 0:01:49]} 9. g4 {[%clk 0:02:50]}  Bg6 {[%clk 0:01:48]} 10. h4 {[%clk 0:02:50]}  h6 {[%clk 0:01:45]} 11. h5 {[%clk 0:02:43]}  Bh7 {[%clk 0:01:45]} 12. d5 {[%clk 0:02:28]}  e5 {[%clk 0:01:41]} 13. Re1 {[%clk 0:02:23]}  Be7 {[%clk 0:01:40]} 14. Bxe5 {[%clk 0:02:19]}  Nxe5 {[%clk 0:01:40]} 15. Rxe5 {[%clk 0:02:18]}  O-O {[%clk 0:01:40]} 16. Nh3 {[%clk 0:02:15]}  Re8 {[%clk 0:01:26]} 17. Bd3 {[%clk 0:02:13]}  Bxd3 {[%clk 0:01:21]} 18. Qxd3 {[%clk 0:02:14]}  Qd7 {[%clk 0:00:54]} 19. Nf2 {[%clk 0:01:56]}  Bg5+ {[%clk 0:00:43]} 20. Rxg5 {[%clk 0:01:55]}  hxg5 {[%clk 0:00:44]} 21. h6 {[%clk 0:01:55]}  g6 {[%clk 0:00:36]} 22. h7+ {[%clk 0:01:47]}  Kg7 {[%clk 0:00:36]} 23. Qh3 {[%clk 0:01:41]}  Rh8 {[%clk 0:00:34]} 24. Qh6+ {[%clk 0:01:40]}  Kf6 {[%clk 0:00:33]} 25. Rf1 {[%clk 0:01:34]}  Ke7 {[%clk 0:00:24]} 26. Qg7 {[%clk 0:01:23]}  Raf8 {[%clk 0:00:23]} 27. Re1+ {[%clk 0:01:11]}  Kd8 {[%clk 0:00:22]} 28. Nd3 {[%clk 0:01:07]}  f6 {[%clk 0:00:21]} 29. Nc5 {[%clk 0:01:06]}  Qxg7 {[%clk 0:00:20]} 30. Ne6+ {[%clk 0:01:05]}  Kd7 {[%clk 0:00:20]} 31. Nxg7 {[%clk 0:01:05]}  Rxh7 {[%clk 0:00:20]} 32. Ne6 {[%clk 0:01:04]}  Rfh8 {[%clk 0:00:19]} 33. Kd2 {[%clk 0:00:55]}  Rh2+ {[%clk 0:00:17]} 34. Kd3 {[%clk 0:00:55]}  b6 {[%clk 0:00:14]} 35. Nd1 {[%clk 0:00:42]}  Rh1 {[%clk 0:00:13]} 36. Rxh1 {[%clk 0:00:39]}  Rxh1 {[%clk 0:00:13]} 37. Ne3 {[%clk 0:00:39]}  Ke7 {[%clk 0:00:10]} 38. Nxc7 {[%clk 0:00:38]}  f5 {[%clk 0:00:10]} 39. gxf5 {[%clk 0:00:37]}  gxf5 {[%clk 0:00:10]} 40. Ne6 {[%clk 0:00:36]}  f4 {[%clk 0:00:10]} 41. Ng4 {[%clk 0:00:36]}  Rh3+ {[%clk 0:00:09]} 42. Kd2 {[%clk 0:00:35]}  Rg3 {[%clk 0:00:10]} 43. Ne5 {[%clk 0:00:34]}  Ne4+ {[%clk 0:00:08]} 44. Kd1 {[%clk 0:00:32]}  Kf6 {[%clk 0:00:07]} 45. Nd7+ {[%clk 0:00:29]}  Kf5 {[%clk 0:00:07]} 46. Nd4+ {[%clk 0:00:29]}  Kg4 {[%clk 0:00:06]} 47. Ne5+ {[%clk 0:00:28]}  Kh3 {[%clk 0:00:05]} 48. Nf5 {[%clk 0:00:24]}  g4 {[%clk 0:00:05]} 49. Nxg3 {[%clk 0:00:19]}  fxg3 {[%clk 0:00:06]} 50. Ng6 {[%clk 0:00:14]}  g2 {[%clk 0:00:06]} 51. Nf4+ {[%clk 0:00:15]}  Kg3 {[%clk 0:00:06]} 52. Nxg2 {[%clk 0:00:15]}  Kxg2 {[%clk 0:00:07]} 53. Ke2 {[%clk 0:00:15]}  Kh2 {[%clk 0:00:07]} 54. Ke3 {[%clk 0:00:15]}  Nd6 {[%clk 0:00:08]} 55. Kf4 {[%clk 0:00:15]}  g3 {[%clk 0:00:08]} 56. Ke5 {[%clk 0:00:16]}  Nc4+ {[%clk 0:00:08]} 57. Ke6 {[%clk 0:00:15]}  g2 {[%clk 0:00:09]} 58. d6 {[%clk 0:00:16]}  Nxd6 {[%clk 0:00:08]} 59. Kxd6 {[%clk 0:00:17]}  g1=Q {[%clk 0:00:08]} 60. Kc7 {[%clk 0:00:17]}  Qc5+ {[%clk 0:00:09]} 61. Kb7 {[%clk 0:00:18]}  Qxc2 {[%clk 0:00:09]} 62. Kxa7 {[%clk 0:00:18]}  Qxb2 {[%clk 0:00:10]} 63. a4 {[%clk 0:00:18]}  Qa2 {[%clk 0:00:11]} 64. Kxb6 {[%clk 0:00:18]}  Qxa4 {[%clk 0:00:11]} 65. Kc5 {[%clk 0:00:19]}  Qa2 {[%clk 0:00:08]} 66. Kd4 {[%clk 0:00:19]}  Kg3 {[%clk 0:00:06]} 67. Ke5 {[%clk 0:00:20]}  Kg4 {[%clk 0:00:07]} 68. Kd6 {[%clk 0:00:20]}  Kg5 {[%clk 0:00:08]} 69. Kc5 {[%clk 0:00:20]}  Kf6 {[%clk 0:00:09]} 70. Kd4 {[%clk 0:00:21]}  Ke7 {[%clk 0:00:09]} 71. Ke4 {[%clk 0:00:22]}  Kd7 {[%clk 0:00:10]} 72. Ke5 {[%clk 0:00:22]}  Qa5+ {[%clk 0:00:10]} 73. Kd4 {[%clk 0:00:23]}  Kd6 {[%clk 0:00:10]} 74. Ke4 {[%clk 0:00:24]}  Qd5+ {[%clk 0:00:10]} 75. Kf4 {[%clk 0:00:24]}  Ke6 {[%clk 0:00:11]} 76. Ke3 {[%clk 0:00:25]}  Kf5 {[%clk 0:00:11]} 77. Kf2 {[%clk 0:00:25]}  Qd3 {[%clk 0:00:11]} 78. Kg2 {[%clk 0:00:25]}  Kf4 {[%clk 0:00:12]} 79. Kf2 {[%clk 0:00:25]}  Qd2+ {[%clk 0:00:12]} 0-1


[Site "https://www.chess.com"]

[Event "Titled Tuesday Blitz December 27 Early 2022"]
[White "Tactrics"]
[Black "Kamsky, Gata"]
[BlackFideId "2000024"]
[WhiteElo "2976"]
[BlackElo "2665"]
[Result "0-1"]
[Round "11"]
[TimeControl "180+2"]
[Date "2022.12.27"]
[WhiteClock "0:00:04"]
[BlackClock "0:00:13"]

1. e4 {[%clk 0:02:58]}  g6 {[%clk 0:02:54]} 2. Nc3 {[%clk 0:02:58]}  Bg7 {[%clk 0:02:53]} 3. f4 {[%clk 0:02:59]}  c5 {[%clk 0:02:46]} 4. Nf3 {[%clk 0:02:59]}  Nc6 {[%clk 0:02:44]} 5. Bb5 {[%clk 0:03:00]}  Nd4 {[%clk 0:02:43]} 6. O-O {[%clk 0:02:59]}  e6 {[%clk 0:02:39]} 7. e5 {[%clk 0:02:59]}  Ne7 {[%clk 0:02:33]} 8. Nxd4 {[%clk 0:02:54]}  cxd4 {[%clk 0:02:32]} 9. Ne4 {[%clk 0:02:54]}  O-O {[%clk 0:02:32]} 10. Bd3 {[%clk 0:02:48]}  b6 {[%clk 0:02:22]} 11. b3 {[%clk 0:02:46]}  Bb7 {[%clk 0:02:16]} 12. Ba3 {[%clk 0:02:43]}  Bxe4 {[%clk 0:02:15]} 13. Bxe4 {[%clk 0:02:44]}  Rc8 {[%clk 0:02:08]} 14. Bd6 {[%clk 0:02:41]}  Re8 {[%clk 0:01:59]} 15. Bb7 {[%clk 0:02:37]}  Rc7 {[%clk 0:01:57]} 16. Bxc7 {[%clk 0:02:36]}  Qxc7 {[%clk 0:01:57]} 17. Be4 {[%clk 0:02:36]}  d6 {[%clk 0:01:53]} 18. exd6 {[%clk 0:02:35]}  Qxd6 {[%clk 0:01:53]} 19. Qf3 {[%clk 0:02:36]}  Rc8 {[%clk 0:01:49]} 20. Kh1 {[%clk 0:02:35]}  h5 {[%clk 0:01:39]} 21. a4 {[%clk 0:02:35]}  a5 {[%clk 0:01:38]} 22. Rae1 {[%clk 0:02:31]}  Qb4 {[%clk 0:01:36]} 23. Bd3 {[%clk 0:02:26]}  Bf6 {[%clk 0:01:34]} 24. Bc4 {[%clk 0:02:21]}  Kg7 {[%clk 0:01:32]} 25. Re2 {[%clk 0:02:13]}  Qd6 {[%clk 0:01:24]} 26. g3 {[%clk 0:02:12]}  Nf5 {[%clk 0:01:22]} 27. Kg2 {[%clk 0:02:10]}  Rc5 {[%clk 0:01:16]} 28. Bd3 {[%clk 0:01:59]}  Ne7 {[%clk 0:01:14]} 29. Be4 {[%clk 0:01:54]}  Qc7 {[%clk 0:01:12]} 30. h3 {[%clk 0:01:53]}  Nf5 {[%clk 0:01:08]} 31. Rff2 {[%clk 0:01:17]}  d3 {[%clk 0:01:01]} 32. Qxd3 {[%clk 0:01:08]}  Nd4 {[%clk 0:01:01]} 33. Re1 {[%clk 0:01:04]}  Rxc2 {[%clk 0:00:56]} 34. Rb1 {[%clk 0:00:49]}  Qc5 {[%clk 0:00:51]} 35. g4 {[%clk 0:00:47]}  Ra2 {[%clk 0:00:47]} 36. Qe3 {[%clk 0:00:35]}  h4 {[%clk 0:00:38]} 37. Rff1 {[%clk 0:00:34]}  Qb4 {[%clk 0:00:33]} 38. Rfd1 {[%clk 0:00:29]}  Ra3 {[%clk 0:00:30]} 39. g5 {[%clk 0:00:23]}  Be7 {[%clk 0:00:29]} 40. Qc3 {[%clk 0:00:23]}  Bc5 {[%clk 0:00:27]} 41. Rdc1 {[%clk 0:00:18]}  Qxc3 {[%clk 0:00:25]} 42. Rxc3 {[%clk 0:00:16]}  Ra2 {[%clk 0:00:23]} 43. Rd3 {[%clk 0:00:16]}  Ne2 {[%clk 0:00:20]} 44. Kf3 {[%clk 0:00:13]}  Nd4+ {[%clk 0:00:19]} 45. Kg4 {[%clk 0:00:14]}  Nf5 {[%clk 0:00:18]} 46. Bxf5 {[%clk 0:00:13]}  gxf5+ {[%clk 0:00:18]} 47. Kf3 {[%clk 0:00:11]}  Rc2 {[%clk 0:00:16]} 48. Re1 {[%clk 0:00:10]}  Bb4 {[%clk 0:00:16]} 49. Re2 {[%clk 0:00:10]}  Rc1 {[%clk 0:00:16]} 50. Rd7 {[%clk 0:00:08]}  Kg6 {[%clk 0:00:14]} 51. Rb7 {[%clk 0:00:08]}  Bc5 {[%clk 0:00:14]} 52. Rd7 {[%clk 0:00:06]}  Rf1+ {[%clk 0:00:13]} 53. Kg2 {[%clk 0:00:07]}  Rxf4 {[%clk 0:00:13]} 54. d4 {[%clk 0:00:05]}  Bxd4 {[%clk 0:00:12]} 55. Rc2 {[%clk 0:00:05]}  Bc5 {[%clk 0:00:12]} 56. Ra7 {[%clk 0:00:04]}  Rb4 {[%clk 0:00:12]} 57. Rd2 {[%clk 0:00:03]}  Rxb3 {[%clk 0:00:12]} 58. Rdd7 {[%clk 0:00:04]}  Rg3+ {[%clk 0:00:12]} 59. Kh2 {[%clk 0:00:05]}  Kxg5 {[%clk 0:00:12]} 60. Rxf7 {[%clk 0:00:05]}  Kf4 {[%clk 0:00:13]} 61. Rh7 {[%clk 0:00:05]}  Ra3 {[%clk 0:00:12]} 62. Rxh4+ {[%clk 0:00:05]}  Kf3 {[%clk 0:00:12]} 63. Rg7 {[%clk 0:00:04]}  Ra2+ {[%clk 0:00:12]} 64. Kh1 {[%clk 0:00:04]}  Ra1+ {[%clk 0:00:12]} 65. Kh2 {[%clk 0:00:04]}  Bd6+ {[%clk 0:00:13]} 66. Rg3+ {[%clk 0:00:04]}  Bxg3# {[%clk 0:00:13]} 0-1


[Site "https://www.chess.com"]

[Event "Titled Tuesday Blitz December 27 Early 2022"]
[White "Tanenbaum, Zachary"]
[Black "Potapova, Margarita"]
[WhiteFideId "2060850"]
[BlackFideId "14126869"]
[WhiteElo "2261"]
[BlackElo "2104"]
[Result "1-0"]
[Round "11"]
[TimeControl "180+2"]
[Date "2022.12.27"]
[WhiteClock "0:00:14"]
[BlackClock "0:00:30"]

1. e4 {[%clk 0:03:00]}  c5 {[%clk 0:02:57]} 2. Nf3 {[%clk 0:03:00]}  d6 {[%clk 0:02:58]} 3. d4 {[%clk 0:03:01]}  cxd4 {[%clk 0:02:58]} 4. Nxd4 {[%clk 0:03:02]}  Nf6 {[%clk 0:02:59]} 5. Nc3 {[%clk 0:03:02]}  a6 {[%clk 0:02:59]} 6. Be3 {[%clk 0:03:03]}  e5 {[%clk 0:02:59]} 7. Nb3 {[%clk 0:03:03]}  Be6 {[%clk 0:03:00]} 8. h3 {[%clk 0:03:04]}  Be7 {[%clk 0:03:00]} 9. Qf3 {[%clk 0:03:04]}  O-O {[%clk 0:02:59]} 10. O-O-O {[%clk 0:03:03]}  b5 {[%clk 0:02:38]} 11. g4 {[%clk 0:02:52]}  b4 {[%clk 0:02:38]} 12. Nd5 {[%clk 0:02:52]}  Nxd5 {[%clk 0:02:39]} 13. exd5 {[%clk 0:02:52]}  Bc8 {[%clk 0:02:39]} 14. h4 {[%clk 0:02:50]}  a5 {[%clk 0:02:40]} 15. Kb1 {[%clk 0:02:47]}  a4 {[%clk 0:02:40]} 16. Nc5 {[%clk 0:02:47]}  Nd7 {[%clk 0:02:31]} 17. Ne4 {[%clk 0:02:42]}  Ba6 {[%clk 0:02:32]} 18. Bxa6 {[%clk 0:02:32]}  Rxa6 {[%clk 0:02:33]} 19. g5 {[%clk 0:02:32]}  b3 {[%clk 0:02:21]} 20. cxb3 {[%clk 0:02:30]}  axb3 {[%clk 0:02:21]} 21. a3 {[%clk 0:02:30]}  Qa8 {[%clk 0:02:22]} 22. Qe2 {[%clk 0:02:19]}  Nb6 {[%clk 0:02:21]} 23. Bxb6 {[%clk 0:02:18]}  Rxb6 {[%clk 0:02:21]} 24. h5 {[%clk 0:02:14]}  Qa4 {[%clk 0:02:16]} 25. g6 {[%clk 0:02:11]}  f5 {[%clk 0:02:12]} 26. Nc3 {[%clk 0:01:56]}  Qa5 {[%clk 0:01:54]} 27. h6 {[%clk 0:01:50]}  hxg6 {[%clk 0:01:39]} 28. hxg7 {[%clk 0:01:49]}  Kxg7 {[%clk 0:01:36]} 29. Rdg1 {[%clk 0:01:47]}  Qa6 {[%clk 0:01:18]} 30. Qe3 {[%clk 0:01:15]}  Kf7 {[%clk 0:01:09]} 31. Rh7+ {[%clk 0:01:01]}  Ke8 {[%clk 0:01:08]} 32. Qh6 {[%clk 0:00:42]}  Rg8 {[%clk 0:01:08]} 33. Rh8 {[%clk 0:00:28]}  Rxh8 {[%clk 0:01:08]} 34. Qxh8+ {[%clk 0:00:29]}  Kd7 {[%clk 0:01:08]} 35. Rc1 {[%clk 0:00:22]}  Qd3+ {[%clk 0:00:56]} 36. Ka1 {[%clk 0:00:21]}  Qd2 {[%clk 0:00:56]} 37. Rd1 {[%clk 0:00:16]}  Qc2 {[%clk 0:00:52]} 38. Qa8 {[%clk 0:00:16]}  Bd8 {[%clk 0:00:48]} 39. Qa7+ {[%clk 0:00:15]}  Bc7 {[%clk 0:00:45]} 40. Qa4+ {[%clk 0:00:15]}  Ke7 {[%clk 0:00:43]} 41. Rh1 {[%clk 0:00:16]}  Kf6 {[%clk 0:00:42]} 42. Qh4+ {[%clk 0:00:15]}  Kf7 {[%clk 0:00:31]} 43. Qh7+ {[%clk 0:00:14]}  Kf6 {[%clk 0:00:30]} 44. Qh8+ {[%clk 0:00:14]} 1-0


[Site "https://www.chess.com"]

[Event "Titled Tuesday Blitz December 27 Early 2022"]
[White "Timofeev, Artyom"]
[Black "Tan, Zhongyi"]
[WhiteFideId "4140419"]
[BlackFideId "8603642"]
[WhiteElo "2567"]
[BlackElo "2517"]
[Result "1-0"]
[Round "11"]
[TimeControl "180+2"]
[Date "2022.12.27"]
[WhiteClock "0:00:58"]
[BlackClock "0:00:04"]

1. d4 {[%clk 0:03:00]}  d5 {[%clk 0:02:59]} 2. Nc3 {[%clk 0:03:00]}  Nf6 {[%clk 0:02:55]} 3. Bf4 {[%clk 0:03:00]}  a6 {[%clk 0:02:54]} 4. e3 {[%clk 0:02:59]}  e6 {[%clk 0:02:49]} 5. g4 {[%clk 0:02:53]}  c5 {[%clk 0:02:49]} 6. g5 {[%clk 0:02:53]}  Nfd7 {[%clk 0:02:48]} 7. Qd2 {[%clk 0:02:45]}  Nc6 {[%clk 0:02:48]} 8. O-O-O {[%clk 0:02:45]}  b5 {[%clk 0:02:48]} 9. Kb1 {[%clk 0:02:36]}  Bb7 {[%clk 0:02:48]} 10. Nf3 {[%clk 0:02:34]}  Be7 {[%clk 0:02:38]} 11. h4 {[%clk 0:02:33]}  c4 {[%clk 0:02:19]} 12. h5 {[%clk 0:02:29]}  Nb6 {[%clk 0:02:13]} 13. Bg2 {[%clk 0:02:26]}  b4 {[%clk 0:02:13]} 14. Ne2 {[%clk 0:02:26]}  c3 {[%clk 0:02:13]} 15. Qe1 {[%clk 0:02:11]}  Nc4 {[%clk 0:01:54]} 16. b3 {[%clk 0:02:06]}  Qa5 {[%clk 0:01:48]} 17. a4 {[%clk 0:01:52]}  Nb2 {[%clk 0:01:35]} 18. g6 {[%clk 0:01:29]}  Nxa4 {[%clk 0:01:34]} 19. bxa4 {[%clk 0:01:29]}  Qxa4 {[%clk 0:01:34]} 20. Rd3 {[%clk 0:01:29]}  Na5 {[%clk 0:01:32]} 21. gxf7+ {[%clk 0:01:26]}  Kxf7 {[%clk 0:01:30]} 22. Ne5+ {[%clk 0:01:26]}  Ke8 {[%clk 0:01:30]} 23. Nxc3 {[%clk 0:01:18]}  bxc3 {[%clk 0:01:28]} 24. Qxc3 {[%clk 0:01:18]}  Bd6 {[%clk 0:01:07]} 25. h6 {[%clk 0:01:14]}  Rb8 {[%clk 0:00:57]} 26. hxg7 {[%clk 0:01:10]}  Rg8 {[%clk 0:00:55]} 27. Rxh7 {[%clk 0:01:06]}  Bc8+ {[%clk 0:00:31]} 28. Kc1 {[%clk 0:01:05]}  Bb4 {[%clk 0:00:22]} 29. Rh8 {[%clk 0:01:01]}  Bxc3 {[%clk 0:00:19]} 30. Rxg8+ {[%clk 0:01:00]}  Ke7 {[%clk 0:00:18]} 31. Rxc3 {[%clk 0:01:01]}  Qa1+ {[%clk 0:00:07]} 32. Kd2 {[%clk 0:01:01]}  Rb1 {[%clk 0:00:05]} 33. Bg5+ {[%clk 0:00:58]}  Kd6 {[%clk 0:00:04]} 34. Rd8+ {[%clk 0:00:58]} 1-0


[Site "https://www.chess.com"]

[Event "Titled Tuesday Blitz December 27 Early 2022"]
[White "Torres Dominguez, David"]
[Black "Andreev, Konstantin"]
[WhiteFideId "2220857"]
[BlackFideId "24239305"]
[WhiteElo "1994"]
[BlackElo "2195"]
[Result "1-0"]
[Round "11"]
[TimeControl "180+2"]
[Date "2022.12.27"]
[WhiteClock "0:00:40"]
[BlackClock "0:00:23"]

1. e4 {[%clk 0:02:57]}  c5 {[%clk 0:02:59]} 2. Nf3 {[%clk 0:02:57]}  e6 {[%clk 0:02:59]} 3. d4 {[%clk 0:02:57]}  cxd4 {[%clk 0:03:00]} 4. Nxd4 {[%clk 0:02:57]}  Nc6 {[%clk 0:03:01]} 5. Nxc6 {[%clk 0:02:56]}  bxc6 {[%clk 0:02:56]} 6. Bd3 {[%clk 0:02:57]}  d5 {[%clk 0:02:55]} 7. O-O {[%clk 0:02:57]}  Bd6 {[%clk 0:02:54]} 8. Nd2 {[%clk 0:02:57]}  Ne7 {[%clk 0:02:54]} 9. Re1 {[%clk 0:02:57]}  O-O {[%clk 0:02:55]} 10. e5 {[%clk 0:02:56]}  Bc7 {[%clk 0:02:55]} 11. Nf3 {[%clk 0:02:56]}  h6 {[%clk 0:02:49]} 12. c4 {[%clk 0:02:53]}  c5 {[%clk 0:02:48]} 13. Bf4 {[%clk 0:02:49]}  Bb7 {[%clk 0:02:48]} 14. Rc1 {[%clk 0:02:47]}  dxc4 {[%clk 0:02:42]} 15. Bxc4 {[%clk 0:02:45]}  Nd5 {[%clk 0:02:42]} 16. Bg3 {[%clk 0:02:41]}  Qe7 {[%clk 0:02:40]} 17. Bd3 {[%clk 0:02:36]}  Rfd8 {[%clk 0:02:38]} 18. Qe2 {[%clk 0:02:37]}  Bb6 {[%clk 0:02:34]} 19. Bb1 {[%clk 0:02:36]}  Nb4 {[%clk 0:01:57]} 20. a3 {[%clk 0:02:31]}  Ba6 {[%clk 0:01:56]} 21. Qe4 {[%clk 0:02:30]}  Bd3 {[%clk 0:01:56]} 22. Qf4 {[%clk 0:02:13]}  Bxb1 {[%clk 0:01:53]} 23. axb4 {[%clk 0:02:13]}  Bh7 {[%clk 0:01:35]} 24. bxc5 {[%clk 0:02:11]}  Bxc5 {[%clk 0:01:33]} 25. Bh4 {[%clk 0:02:10]}  g5 {[%clk 0:01:29]} 26. Nxg5 {[%clk 0:02:10]}  hxg5 {[%clk 0:01:30]} 27. Bxg5 {[%clk 0:02:10]}  Qf8 {[%clk 0:01:30]} 28. Bh6 {[%clk 0:02:00]}  Qe7 {[%clk 0:01:15]} 29. Bg5 {[%clk 0:01:57]}  Qf8 {[%clk 0:01:15]} 30. Bxd8 {[%clk 0:01:42]}  Rxd8 {[%clk 0:01:16]} 31. Qg5+ {[%clk 0:01:42]}  Kh8 {[%clk 0:01:14]} 32. Rxc5 {[%clk 0:01:41]}  Rd4 {[%clk 0:01:00]} 33. Qf6+ {[%clk 0:01:32]}  Kg8 {[%clk 0:00:54]} 34. Rc3 {[%clk 0:01:32]}  Bg6 {[%clk 0:00:45]} 35. Rh3 {[%clk 0:01:28]}  Bh7 {[%clk 0:00:45]} 36. Rg3+ {[%clk 0:01:28]}  Bg6 {[%clk 0:00:45]} 37. Rxg6+ {[%clk 0:01:21]}  fxg6 {[%clk 0:00:46]} 38. Qxg6+ {[%clk 0:01:20]}  Kh8 {[%clk 0:00:46]} 39. Qxe6 {[%clk 0:01:16]}  Rf4 {[%clk 0:00:43]} 40. f3 {[%clk 0:01:07]}  Qc5+ {[%clk 0:00:42]} 41. Kh1 {[%clk 0:01:07]}  Qf2 {[%clk 0:00:42]} 42. Qh6+ {[%clk 0:01:01]}  Kg8 {[%clk 0:00:42]} 43. Qg5+ {[%clk 0:01:01]}  Kh8 {[%clk 0:00:41]} 44. Rd1 {[%clk 0:00:56]}  Rd4 {[%clk 0:00:40]} 45. Qf6+ {[%clk 0:00:46]}  Kg8 {[%clk 0:00:40]} 46. Rg1 {[%clk 0:00:44]}  Rh4 {[%clk 0:00:38]} 47. Qg5+ {[%clk 0:00:42]}  Kh8 {[%clk 0:00:35]} 48. h3 {[%clk 0:00:42]}  Rc4 {[%clk 0:00:23]} 49. Rd1 {[%clk 0:00:40]} 1-0


[Site "https://www.chess.com"]

[Event "Titled Tuesday Blitz December 27 Early 2022"]
[White "Vargas, Mauricio"]
[Black "Araujo, Everson De Moura"]
[WhiteFideId "4404572"]
[BlackFideId "22737197"]
[WhiteElo "2035"]
[BlackElo "1944"]
[Result "0-1"]
[Round "11"]
[TimeControl "180+2"]
[Date "2022.12.27"]
[WhiteClock "0:00:01"]
[BlackClock "0:01:15"]

1. e4 {[%clk 0:00:18]}  e6 {[%clk 0:02:59]} 2. Nc3 {[%clk 0:00:18]}  d5 {[%clk 0:03:00]} 3. e5 {[%clk 0:00:18]}  c5 {[%clk 0:02:59]} 4. f4 {[%clk 0:00:19]}  Nc6 {[%clk 0:02:59]} 5. Nf3 {[%clk 0:00:19]}  d4 {[%clk 0:02:58]} 6. Ne4 {[%clk 0:00:19]}  b6 {[%clk 0:02:55]} 7. d3 {[%clk 0:00:19]}  Bb7 {[%clk 0:02:56]} 8. g3 {[%clk 0:00:17]}  Nh6 {[%clk 0:02:55]} 9. Bg2 {[%clk 0:00:17]}  Nf5 {[%clk 0:02:55]} 10. O-O {[%clk 0:00:18]}  h5 {[%clk 0:02:51]} 11. Qe1 {[%clk 0:00:16]}  Be7 {[%clk 0:02:49]} 12. a3 {[%clk 0:00:15]}  a5 {[%clk 0:02:48]} 13. Bd2 {[%clk 0:00:15]}  Qc7 {[%clk 0:02:43]} 14. Rb1 {[%clk 0:00:16]}  O-O {[%clk 0:02:39]} 15. h3 {[%clk 0:00:12]}  a4 {[%clk 0:02:28]} 16. g4 {[%clk 0:00:12]}  hxg4 {[%clk 0:02:27]} 17. hxg4 {[%clk 0:00:12]}  Nh6 {[%clk 0:02:27]} 18. Qg3 {[%clk 0:00:12]}  Na5 {[%clk 0:02:16]} 19. Kf2 {[%clk 0:00:12]}  Bxe4 {[%clk 0:02:15]} 20. dxe4 {[%clk 0:00:11]}  Nc4 {[%clk 0:02:15]} 21. Bc1 {[%clk 0:00:07]}  f6 {[%clk 0:02:06]} 22. Rh1 {[%clk 0:00:07]}  fxe5 {[%clk 0:01:56]} 23. g5 {[%clk 0:00:07]}  exf4 {[%clk 0:01:54]} 24. Qh4 {[%clk 0:00:05]}  Ne5 {[%clk 0:01:44]} 25. Qh5 {[%clk 0:00:03]}  Neg4+ {[%clk 0:01:27]} 26. Ke2 {[%clk 0:00:01]}  d3+ {[%clk 0:01:15]} 0-1


[Site "https://www.chess.com"]